[Event "January 2 Late 2024"]
[Site "https://www.chess.com"]
[Date "2024.01.02"]
[Round "6"]
[White "Zarubitski, Viachaslau"]
[Black "Le, Tuan Minh"]
[Result "0-1"]
[Board "10"]
[TimeControl "180+1"]
[WhiteFideId "13509373"]
[BlackFideId "12401153"]
[WhiteElo "2735"]
[BlackElo "3010"]
[WhiteTeam "BLR"]
[BlackTeam "VIE"]
[WhiteClock "0:00:00"]
[BlackClock "0:00:07"]

1. c4 {[%clk 0:02:59]}  c6 {[%clk 0:02:56]} 2. Nf3 {[%clk 0:02:58]}  Nf6 {[%clk 0:02:56]} 3. b3 {[%clk 0:02:57]}  d5 {[%clk 0:02:55]} 4. Bb2 {[%clk 0:02:58]}  Bf5 {[%clk 0:02:56]} 5. g3 {[%clk 0:02:53]}  e6 {[%clk 0:02:56]} 6. Bg2 {[%clk 0:02:53]}  h6 {[%clk 0:02:56]} 7. O-O {[%clk 0:02:54]}  Be7 {[%clk 0:02:57]} 8. d3 {[%clk 0:02:51]}  O-O {[%clk 0:02:57]} 9. Nbd2 {[%clk 0:02:49]}  a5 {[%clk 0:02:58]} 10. a3 {[%clk 0:02:49]}  Nbd7 {[%clk 0:02:57]} 11. Qc2 {[%clk 0:02:40]}  Bh7 {[%clk 0:02:57]} 12. Bc3 {[%clk 0:02:35]}  b5 {[%clk 0:02:46]} 13. cxb5 {[%clk 0:02:31]}  cxb5 {[%clk 0:02:46]} 14. b4 {[%clk 0:02:29]}  a4 {[%clk 0:02:33]} 15. Rac1 {[%clk 0:02:23]}  Rc8 {[%clk 0:02:08]} 16. Qb2 {[%clk 0:02:19]}  Qb6 {[%clk 0:02:09]} 17. Bd4 {[%clk 0:02:00]}  Qb7 {[%clk 0:02:07]} 18. Ne5 {[%clk 0:01:59]}  Nxe5 {[%clk 0:01:45]} 19. Bxe5 {[%clk 0:02:00]}  Rfd8 {[%clk 0:01:45]} 20. Nf3 {[%clk 0:01:53]}  Ne8 {[%clk 0:01:31]} 21. Rxc8 {[%clk 0:01:47]}  Rxc8 {[%clk 0:01:31]} 22. Rc1 {[%clk 0:01:47]}  f6 {[%clk 0:01:25]} 23. Bd4 {[%clk 0:01:46]}  e5 {[%clk 0:01:09]} 24. Bc5 {[%clk 0:01:46]}  Bxc5 {[%clk 0:00:59]} 25. bxc5 {[%clk 0:01:46]}  Bf5 {[%clk 0:01:00]} 26. Nxe5 {[%clk 0:01:26]}  fxe5 {[%clk 0:00:48]} 27. Qxe5 {[%clk 0:01:25]}  Qd7 {[%clk 0:00:48]} 28. Bxd5+ {[%clk 0:01:19]}  Kh8 {[%clk 0:00:48]} 29. c6 {[%clk 0:01:19]}  Bh3 {[%clk 0:00:47]} 30. f4 {[%clk 0:00:44]}  Qc7 {[%clk 0:00:26]} 31. Qh5 {[%clk 0:00:36]}  Rd8 {[%clk 0:00:26]} 32. e4 {[%clk 0:00:33]}  Qb6+ {[%clk 0:00:25]} 33. Kh1 {[%clk 0:00:31]}  Bc8 {[%clk 0:00:17]} 34. Qe2 {[%clk 0:00:13]}  Nf6 {[%clk 0:00:16]} 35. Bf7 {[%clk 0:00:13]}  Ng4 {[%clk 0:00:16]} 36. h3 {[%clk 0:00:12]}  Nf2+ {[%clk 0:00:16]} 37. Kg2 {[%clk 0:00:11]}  Bxh3+ {[%clk 0:00:16]} 38. Kh2 {[%clk 0:00:10]}  Bg4 {[%clk 0:00:16]} 39. Qd2 {[%clk 0:00:04]}  Rxd3 {[%clk 0:00:16]} 40. c7 {[%clk 0:00:03]}  Bc8 {[%clk 0:00:14]} 41. Qe2 {[%clk 0:00:03]}  Rd7 {[%clk 0:00:12]} 42. Bd5 {[%clk 0:00:03]}  Rxc7 {[%clk 0:00:12]} 43. Rxc7 {[%clk 0:00:04]}  Qxc7 {[%clk 0:00:12]} 44. Qxf2 {[%clk 0:00:04]}  Bd7 {[%clk 0:00:07]} 45. Qd4 {[%clk 0:00:04]}  Qc2+ {[%clk 0:00:07]} 46. Kg1 {[%clk 0:00:05]}  Qc1+ {[%clk 0:00:08]} 47. Kf2 {[%clk 0:00:05]}  Qxa3 {[%clk 0:00:08]} 48. e5 {[%clk 0:00:05]}  Qe7 {[%clk 0:00:08]} 49. e6 {[%clk 0:00:04]}  Be8 {[%clk 0:00:06]} 50. Qe5 {[%clk 0:00:02]}  b4 {[%clk 0:00:07]} 51. Qd4 {[%clk 0:00:01]}  b3 {[%clk 0:00:07]} 52. Qc3 {[%clk 0:00:01]}  Qa7+ {[%clk 0:00:07]} 53. Kf3 {[%clk 0:00:00]}  Qb8 {[%clk 0:00:07]} 0-1

[Event "January 2 Late 2024"]
[Site "https://www.chess.com"]
[Date "2024.01.02"]
[Round "6"]
[White "Kollars, Dmitrij"]
[Black "Troff, Kayden"]
[Result "1-0"]
[Board "11"]
[TimeControl "180+1"]
[WhiteFideId "12909572"]
[BlackFideId "2047896"]
[WhiteElo "3003"]
[BlackElo "2809"]
[WhiteTeam "GER"]
[BlackTeam "USA"]
[WhiteClock "0:00:09"]
[BlackClock "0:00:01"]

1. e4 {[%clk 0:03:00]}  c5 {[%clk 0:02:59]} 2. Nf3 {[%clk 0:02:59]}  g6 {[%clk 0:02:59]} 3. c3 {[%clk 0:02:59]}  Bg7 {[%clk 0:02:59]} 4. d4 {[%clk 0:02:59]}  cxd4 {[%clk 0:03:00]} 5. cxd4 {[%clk 0:03:00]}  d5 {[%clk 0:03:00]} 6. e5 {[%clk 0:03:00]}  Nc6 {[%clk 0:03:00]} 7. Bb5 {[%clk 0:02:59]}  Nh6 {[%clk 0:03:00]} 8. O-O {[%clk 0:02:59]}  Bg4 {[%clk 0:02:54]} 9. Bxc6+ {[%clk 0:02:58]}  bxc6 {[%clk 0:02:54]} 10. Nbd2 {[%clk 0:02:59]}  O-O {[%clk 0:02:54]} 11. h3 {[%clk 0:02:59]}  Bxf3 {[%clk 0:02:54]} 12. Nxf3 {[%clk 0:03:00]}  f6 {[%clk 0:02:50]} 13. Re1 {[%clk 0:02:36]}  Nf7 {[%clk 0:02:44]} 14. exf6 {[%clk 0:02:30]}  exf6 {[%clk 0:02:34]} 15. Bf4 {[%clk 0:02:30]}  Qd7 {[%clk 0:02:27]} 16. Qa4 {[%clk 0:02:16]}  g5 {[%clk 0:02:13]} 17. Bg3 {[%clk 0:02:10]}  Rfe8 {[%clk 0:02:09]} 18. Rac1 {[%clk 0:02:06]}  Rxe1+ {[%clk 0:02:04]} 19. Nxe1 {[%clk 0:02:05]}  f5 {[%clk 0:01:47]} 20. f4 {[%clk 0:01:54]}  Qe6 {[%clk 0:01:03]} 21. Bf2 {[%clk 0:01:40]}  Rc8 {[%clk 0:00:51]} 22. Nd3 {[%clk 0:01:35]}  Qe4 {[%clk 0:00:27]} 23. Ne5 {[%clk 0:01:12]}  Qxf4 {[%clk 0:00:24]} 24. Rxc6 {[%clk 0:01:10]}  Rxc6 {[%clk 0:00:18]} 25. Qxc6 {[%clk 0:01:11]}  Nxe5 {[%clk 0:00:17]} 26. Qe8+ {[%clk 0:01:01]}  Bf8 {[%clk 0:00:14]} 27. dxe5 {[%clk 0:01:02]}  d4 {[%clk 0:00:11]} 28. e6 {[%clk 0:00:48]}  Qc1+ {[%clk 0:00:05]} 29. Kh2 {[%clk 0:00:47]}  Qc7+ {[%clk 0:00:06]} 30. g3 {[%clk 0:00:35]}  Qe7 {[%clk 0:00:06]} 31. Qd7 {[%clk 0:00:35]}  d3 {[%clk 0:00:04]} 32. a4 {[%clk 0:00:16]}  f4 {[%clk 0:00:04]} 33. gxf4 {[%clk 0:00:15]}  gxf4 {[%clk 0:00:05]} 34. Qxd3 {[%clk 0:00:11]}  Qxe6 {[%clk 0:00:05]} 35. Bxa7 {[%clk 0:00:11]}  f3 {[%clk 0:00:05]} 36. Qxf3 {[%clk 0:00:10]}  Bd6+ {[%clk 0:00:05]} 37. Kg1 {[%clk 0:00:08]}  Qe1+ {[%clk 0:00:05]} 38. Qf1 {[%clk 0:00:08]}  Qe5 {[%clk 0:00:03]} 39. Qg2+ {[%clk 0:00:07]}  Kf7 {[%clk 0:00:04]} 40. Qf3+ {[%clk 0:00:07]}  Kg8 {[%clk 0:00:04]} 41. Qg4+ {[%clk 0:00:07]}  Kf7 {[%clk 0:00:04]} 42. Bd4 {[%clk 0:00:06]}  Qe1+ {[%clk 0:00:04]} 43. Kg2 {[%clk 0:00:06]}  Qd2+ {[%clk 0:00:04]} 44. Bf2 {[%clk 0:00:06]}  Be5 {[%clk 0:00:03]} 45. Qf5+ {[%clk 0:00:06]}  Bf6 {[%clk 0:00:04]} 46. Qh5+ {[%clk 0:00:05]}  Kg7 {[%clk 0:00:04]} 47. Qg4+ {[%clk 0:00:06]}  Kf7 {[%clk 0:00:04]} 48. Qc4+ {[%clk 0:00:06]}  Kg7 {[%clk 0:00:05]} 49. b4 {[%clk 0:00:06]}  h5 {[%clk 0:00:02]} 50. Qc7+ {[%clk 0:00:06]}  Kg6 {[%clk 0:00:02]} 51. Qg3+ {[%clk 0:00:07]}  Kf7 {[%clk 0:00:03]} 52. Qb3+ {[%clk 0:00:06]}  Kg6 {[%clk 0:00:03]} 53. b5 {[%clk 0:00:06]}  Be5 {[%clk 0:00:03]} 54. Qe3 {[%clk 0:00:06]}  Qd5+ {[%clk 0:00:03]} 55. Qf3 {[%clk 0:00:06]}  Qc4 {[%clk 0:00:03]} 56. Qc6+ {[%clk 0:00:06]}  Qxc6+ {[%clk 0:00:03]} 57. bxc6 {[%clk 0:00:07]}  Bc7 {[%clk 0:00:03]} 58. Bg3 {[%clk 0:00:08]}  Bxg3 {[%clk 0:00:01]} 59. Kxg3 {[%clk 0:00:09]} 1-0

[Event "January 2 Late 2024"]
[Site "https://www.chess.com"]
[Date "2024.01.02"]
[Round "6"]
[White "Rustemov, Alexander"]
[Black "Vachier-Lagrave, Maxime"]
[Result "0-1"]
[Board "12"]
[TimeControl "180+1"]
[WhiteFideId "4119002"]
[BlackFideId "623539"]
[WhiteElo "2867"]
[BlackElo "3190"]
[WhiteTeam "RUS"]
[BlackTeam "FRA"]
[WhiteClock "0:00:00"]
[BlackClock "0:00:15"]

1. d4 {[%clk 0:02:56]}  Nf6 {[%clk 0:03:00]} 2. Nf3 {[%clk 0:02:56]}  d5 {[%clk 0:02:58]} 3. c3 {[%clk 0:02:52]}  c6 {[%clk 0:02:50]} 4. Qc2 {[%clk 0:02:52]}  g6 {[%clk 0:02:50]} 5. Bf4 {[%clk 0:02:49]}  Bg7 {[%clk 0:02:47]} 6. e3 {[%clk 0:02:48]}  O-O {[%clk 0:02:45]} 7. h3 {[%clk 0:02:47]}  Bf5 {[%clk 0:02:40]} 8. Bd3 {[%clk 0:02:46]}  Bxd3 {[%clk 0:02:40]} 9. Qxd3 {[%clk 0:02:47]}  Qb6 {[%clk 0:02:40]} 10. Qc2 {[%clk 0:02:42]}  Qa6 {[%clk 0:02:40]} 11. Qe2 {[%clk 0:02:42]}  Qxe2+ {[%clk 0:02:38]} 12. Kxe2 {[%clk 0:02:42]}  Nbd7 {[%clk 0:02:38]} 13. a4 {[%clk 0:02:40]}  Rfc8 {[%clk 0:02:30]} 14. Nbd2 {[%clk 0:02:39]}  c5 {[%clk 0:02:31]} 15. Ne5 {[%clk 0:02:34]}  Nf8 {[%clk 0:02:29]} 16. a5 {[%clk 0:02:30]}  Ne6 {[%clk 0:02:29]} 17. Bh2 {[%clk 0:02:28]}  Ne8 {[%clk 0:02:26]} 18. Nd3 {[%clk 0:02:27]}  Rc6 {[%clk 0:02:13]} 19. Nf4 {[%clk 0:02:14]}  N8c7 {[%clk 0:02:05]} 20. Rhd1 {[%clk 0:02:03]}  Rc8 {[%clk 0:01:49]} 21. Nxe6 {[%clk 0:01:58]}  Nxe6 {[%clk 0:01:50]} 22. Nf3 {[%clk 0:01:58]}  Ra6 {[%clk 0:01:46]} 23. Kd3 {[%clk 0:01:45]}  Kf8 {[%clk 0:01:39]} 24. Be5 {[%clk 0:01:42]}  f6 {[%clk 0:01:36]} 25. Bg3 {[%clk 0:01:41]}  Kf7 {[%clk 0:01:36]} 26. Ra4 {[%clk 0:01:37]}  Bf8 {[%clk 0:01:35]} 27. Rb1 {[%clk 0:01:32]}  Rac6 {[%clk 0:01:35]} 28. Ke2 {[%clk 0:01:21]}  Ng7 {[%clk 0:01:34]} 29. Bh2 {[%clk 0:01:19]}  e6 {[%clk 0:01:33]} 30. g4 {[%clk 0:01:17]}  g5 {[%clk 0:01:26]} 31. Bg3 {[%clk 0:01:14]}  h5 {[%clk 0:01:25]} 32. Rg1 {[%clk 0:01:10]}  Be7 {[%clk 0:01:23]} 33. Raa1 {[%clk 0:01:09]}  Rh8 {[%clk 0:01:22]} 34. Kd3 {[%clk 0:01:04]}  Ne8 {[%clk 0:01:22]} 35. Rab1 {[%clk 0:00:58]}  Bd6 {[%clk 0:01:19]} 36. Nd2 {[%clk 0:00:36]}  Bxg3 {[%clk 0:01:15]} 37. Rxg3 {[%clk 0:00:36]}  Nd6 {[%clk 0:01:15]} 38. Rg2 {[%clk 0:00:32]}  hxg4 {[%clk 0:01:06]} 39. hxg4 {[%clk 0:00:32]}  Rh3 {[%clk 0:01:06]} 40. Ke2 {[%clk 0:00:32]}  Kg6 {[%clk 0:01:01]} 41. Ra1 {[%clk 0:00:30]}  Rc7 {[%clk 0:00:59]} 42. Nb3 {[%clk 0:00:23]}  c4 {[%clk 0:00:44]} 43. Nd2 {[%clk 0:00:21]}  Rch7 {[%clk 0:00:44]} 44. Rb1 {[%clk 0:00:16]}  Rh1 {[%clk 0:00:42]} 45. Rgg1 {[%clk 0:00:16]}  Rxg1 {[%clk 0:00:42]} 46. Rxg1 {[%clk 0:00:16]}  Kf7 {[%clk 0:00:33]} 47. Rb1 {[%clk 0:00:16]}  Ke7 {[%clk 0:00:33]} 48. b3 {[%clk 0:00:17]}  cxb3 {[%clk 0:00:34]} 49. Rxb3 {[%clk 0:00:17]}  Rh4 {[%clk 0:00:32]} 50. Kf3 {[%clk 0:00:16]}  Kd7 {[%clk 0:00:31]} 51. Rb1 {[%clk 0:00:14]}  Kc6 {[%clk 0:00:31]} 52. Kg3 {[%clk 0:00:14]}  Rh7 {[%clk 0:00:28]} 53. Rb4 {[%clk 0:00:13]}  Rh1 {[%clk 0:00:19]} 54. c4 {[%clk 0:00:13]}  Ra1 {[%clk 0:00:17]} 55. c5 {[%clk 0:00:07]}  Nb5 {[%clk 0:00:16]} 56. Nb3 {[%clk 0:00:03]}  Ra2 {[%clk 0:00:16]} 57. Kg2 {[%clk 0:00:02]}  Nc3 {[%clk 0:00:15]} 58. Kf3 {[%clk 0:00:00]}  Ne4 {[%clk 0:00:15]} 0-1

[Event "January 2 Late 2024"]
[Site "https://www.chess.com"]
[Date "2024.01.02"]
[Round "6"]
[White "Maksimovic, Bojan"]
[Black "Aronian, Levon"]
[Result "1-0"]
[Board "14"]
[TimeControl "180+1"]
[WhiteFideId "14408120"]
[BlackFideId "13300474"]
[WhiteElo "2851"]
[BlackElo "3105"]
[WhiteTeam "BIH"]
[BlackTeam "USA"]
[WhiteClock "0:00:04"]
[BlackClock "0:00:00"]

1. a3 {[%clk 0:03:00]}  d5 {[%clk 0:02:58]} 2. h3 {[%clk 0:03:01]}  e5 {[%clk 0:02:58]} 3. e3 {[%clk 0:03:01]}  Nf6 {[%clk 0:02:58]} 4. d4 {[%clk 0:03:01]}  exd4 {[%clk 0:02:57]} 5. exd4 {[%clk 0:03:02]}  Bd6 {[%clk 0:02:57]} 6. Bd3 {[%clk 0:03:02]}  O-O {[%clk 0:02:57]} 7. Ne2 {[%clk 0:03:03]}  Re8 {[%clk 0:02:55]} 8. Nc3 {[%clk 0:03:02]}  c6 {[%clk 0:02:54]} 9. O-O {[%clk 0:03:03]}  Nbd7 {[%clk 0:02:53]} 10. Bf4 {[%clk 0:03:02]}  Bf8 {[%clk 0:02:50]} 11. Qd2 {[%clk 0:03:01]}  a5 {[%clk 0:02:49]} 12. Rae1 {[%clk 0:02:58]}  b5 {[%clk 0:02:48]} 13. Ng3 {[%clk 0:02:58]}  g6 {[%clk 0:02:39]} 14. Rxe8 {[%clk 0:02:56]}  Nxe8 {[%clk 0:02:38]} 15. Re1 {[%clk 0:02:56]}  Ng7 {[%clk 0:02:36]} 16. Nd1 {[%clk 0:02:39]}  Nb6 {[%clk 0:02:32]} 17. Bg5 {[%clk 0:02:13]}  f6 {[%clk 0:02:30]} 18. Bh6 {[%clk 0:02:12]}  Ra7 {[%clk 0:02:30]} 19. Ne3 {[%clk 0:02:09]}  a4 {[%clk 0:02:25]} 20. c3 {[%clk 0:02:08]}  Rf7 {[%clk 0:02:23]} 21. Nc2 {[%clk 0:02:05]}  Bd6 {[%clk 0:02:16]} 22. Nb4 {[%clk 0:01:59]}  Bd7 {[%clk 0:02:15]} 23. Bf4 {[%clk 0:01:56]}  Bf8 {[%clk 0:02:15]} 24. Nf1 {[%clk 0:01:45]}  Qc8 {[%clk 0:02:10]} 25. Ne3 {[%clk 0:01:36]}  Nh5 {[%clk 0:02:00]} 26. Bh2 {[%clk 0:01:35]}  Bh6 {[%clk 0:01:59]} 27. Qd1 {[%clk 0:01:34]}  Nf4 {[%clk 0:01:52]} 28. Bf1 {[%clk 0:01:32]}  Ne6 {[%clk 0:01:49]} 29. Ng4 {[%clk 0:01:27]}  Bg7 {[%clk 0:01:48]} 30. Nd3 {[%clk 0:01:27]}  Nc4 {[%clk 0:01:47]} 31. Qc2 {[%clk 0:01:27]}  Bf8 {[%clk 0:01:42]} 32. Ne3 {[%clk 0:01:22]}  Nb6 {[%clk 0:01:34]} 33. Nb4 {[%clk 0:01:18]}  Ng5 {[%clk 0:01:31]} 34. Qd1 {[%clk 0:01:06]}  Ne4 {[%clk 0:01:28]} 35. Nd3 {[%clk 0:01:04]}  Re7 {[%clk 0:01:11]} 36. f3 {[%clk 0:01:04]}  Ng5 {[%clk 0:01:09]} 37. h4 {[%clk 0:00:59]}  Nf7 {[%clk 0:01:08]} 38. Nc5 {[%clk 0:00:59]}  Re8 {[%clk 0:01:04]} 39. h5 {[%clk 0:00:46]}  f5 {[%clk 0:01:03]} 40. hxg6 {[%clk 0:00:39]}  hxg6 {[%clk 0:01:03]} 41. Nc2 {[%clk 0:00:40]}  Bh6 {[%clk 0:00:57]} 42. Bg3 {[%clk 0:00:27]}  Bg5 {[%clk 0:00:55]} 43. Nb4 {[%clk 0:00:26]}  f4 {[%clk 0:00:49]} 44. Bh2 {[%clk 0:00:22]}  Bf5 {[%clk 0:00:48]} 45. Nbd3 {[%clk 0:00:15]}  Nc4 {[%clk 0:00:44]} 46. Nxf4 {[%clk 0:00:07]}  Nxb2 {[%clk 0:00:44]} 47. Qd2 {[%clk 0:00:06]}  Nc4 {[%clk 0:00:43]} 48. Bxc4 {[%clk 0:00:06]}  bxc4 {[%clk 0:00:42]} 49. g4 {[%clk 0:00:06]}  Bd7 {[%clk 0:00:28]} 50. Rxe8+ {[%clk 0:00:06]}  Qxe8 {[%clk 0:00:27]} 51. Qe2 {[%clk 0:00:07]}  Qxe2 {[%clk 0:00:19]} 52. Nxe2 {[%clk 0:00:07]}  Bc8 {[%clk 0:00:18]} 53. Nxa4 {[%clk 0:00:08]}  Be7 {[%clk 0:00:15]} 54. Nc5 {[%clk 0:00:08]}  Ng5 {[%clk 0:00:16]} 55. Kg2 {[%clk 0:00:07]}  Kf7 {[%clk 0:00:13]} 56. a4 {[%clk 0:00:08]}  Ne6 {[%clk 0:00:10]} 57. Nxe6 {[%clk 0:00:07]}  Kxe6 {[%clk 0:00:10]} 58. Bc7 {[%clk 0:00:05]}  Kd7 {[%clk 0:00:07]} 59. Bb6 {[%clk 0:00:06]}  g5 {[%clk 0:00:07]} 60. a5 {[%clk 0:00:06]}  Bd6 {[%clk 0:00:07]} 61. Bc5 {[%clk 0:00:05]}  Bc7 {[%clk 0:00:04]} 62. Bb4 {[%clk 0:00:06]}  Ke6 {[%clk 0:00:02]} 63. Kf2 {[%clk 0:00:07]}  Kf6 {[%clk 0:00:02]} 64. Ke3 {[%clk 0:00:07]}  Bh2 {[%clk 0:00:01]} 65. Kf2 {[%clk 0:00:08]}  Bc7 {[%clk 0:00:01]} 66. Ng1 {[%clk 0:00:07]}  Kg6 {[%clk 0:00:01]} 67. Nh3 {[%clk 0:00:07]}  Kf6 {[%clk 0:00:01]} 68. Ke2 {[%clk 0:00:08]}  Bg3 {[%clk 0:00:01]} 69. Nf2 {[%clk 0:00:08]}  Bc7 {[%clk 0:00:02]} 70. Nd1 {[%clk 0:00:08]}  Ba6 {[%clk 0:00:02]} 71. Nb2 {[%clk 0:00:08]}  Bc8 {[%clk 0:00:02]} 72. Na4 {[%clk 0:00:08]}  Ke6 {[%clk 0:00:02]} 73. Nc5+ {[%clk 0:00:06]}  Kf6 {[%clk 0:00:02]} 74. Na4 {[%clk 0:00:03]}  Bd8 {[%clk 0:00:02]} 75. Nb6 {[%clk 0:00:04]}  Ba6 {[%clk 0:00:02]} 76. Bd6 {[%clk 0:00:04]}  Bxb6 {[%clk 0:00:01]} 77. axb6 {[%clk 0:00:04]}  Ke6 {[%clk 0:00:02]} 78. Bc7 {[%clk 0:00:04]}  Bc8 {[%clk 0:00:00]} 79. Bd8 {[%clk 0:00:04]} 1-0

[Event "January 2 Late 2024"]
[Site "https://www.chess.com"]
[Date "2024.01.02"]
[Round "6"]
[White "Panchenko, Dmitry"]
[Black "Hakobyan, Aram"]
[Result "1-0"]
[Board "19"]
[TimeControl "180+1"]
[WhiteFideId "4169158"]
[BlackFideId "13306677"]
[WhiteElo "2813"]
[BlackElo "3019"]
[WhiteTeam "RUS"]
[BlackTeam "ARM"]
[WhiteClock "0:00:59"]
[BlackClock "0:00:00"]

1. e4 {[%clk 0:02:29]}  e5 {[%clk 0:02:57]} 2. Nf3 {[%clk 0:02:26]}  Nc6 {[%clk 0:02:58]} 3. Bc4 {[%clk 0:02:26]}  Nf6 {[%clk 0:02:57]} 4. d3 {[%clk 0:02:26]}  d5 {[%clk 0:02:56]} 5. exd5 {[%clk 0:02:25]}  Nxd5 {[%clk 0:02:57]} 6. O-O {[%clk 0:02:24]}  Nb6 {[%clk 0:02:57]} 7. Bb3 {[%clk 0:02:24]}  Bg4 {[%clk 0:02:57]} 8. h3 {[%clk 0:02:19]}  Bh5 {[%clk 0:02:55]} 9. Re1 {[%clk 0:02:18]}  Qe7 {[%clk 0:02:51]} 10. a4 {[%clk 0:02:16]}  a5 {[%clk 0:02:47]} 11. Nc3 {[%clk 0:02:15]}  O-O-O {[%clk 0:02:45]} 12. g4 {[%clk 0:02:14]}  Bg6 {[%clk 0:02:45]} 13. Be3 {[%clk 0:02:11]}  h5 {[%clk 0:02:22]} 14. g5 {[%clk 0:02:09]}  Qd7 {[%clk 0:02:08]} 15. Kh2 {[%clk 0:02:03]}  f5 {[%clk 0:01:47]} 16. Nh4 {[%clk 0:01:57]}  Bf7 {[%clk 0:01:37]} 17. Bxf7 {[%clk 0:01:56]}  Qxf7 {[%clk 0:01:38]} 18. Bxb6 {[%clk 0:01:55]}  cxb6 {[%clk 0:01:39]} 19. Qf3 {[%clk 0:01:53]}  g6 {[%clk 0:01:36]} 20. Nb5 {[%clk 0:01:46]}  Bd6 {[%clk 0:01:33]} 21. Nxd6+ {[%clk 0:01:45]}  Rxd6 {[%clk 0:01:34]} 22. Qe3 {[%clk 0:01:36]}  Qc7 {[%clk 0:01:27]} 23. f4 {[%clk 0:01:31]}  Re8 {[%clk 0:01:14]} 24. Kg1 {[%clk 0:01:29]}  Rde6 {[%clk 0:01:10]} 25. Nf3 {[%clk 0:01:24]}  e4 {[%clk 0:01:07]} 26. dxe4 {[%clk 0:01:20]}  Rxe4 {[%clk 0:01:05]} 27. Qd2 {[%clk 0:01:20]}  Nb4 {[%clk 0:00:34]} 28. c3 {[%clk 0:01:13]}  Qc5+ {[%clk 0:00:30]} 29. Kh2 {[%clk 0:01:12]}  Nd5 {[%clk 0:00:09]} 30. Rad1 {[%clk 0:01:07]}  Rxe1 {[%clk 0:00:03]} 31. Nxe1 {[%clk 0:01:06]}  Nc7 {[%clk 0:00:01]} 32. Nf3 {[%clk 0:01:01]}  Kb8 {[%clk 0:00:01]} 33. Ne5 {[%clk 0:01:00]}  Ka7 {[%clk 0:00:00]} 34. b4 {[%clk 0:00:59]} 1-0

[Event "January 2 Late 2024"]
[Site "https://www.chess.com"]
[Date "2024.01.02"]
[Round "6"]
[White "Lie, Kjetil A."]
[Black "Iturrizaga Bonelli, Eduardo"]
[Result "0-1"]
[Board "24"]
[TimeControl "180+1"]
[WhiteFideId "1501984"]
[BlackFideId "3901211"]
[WhiteElo "2757"]
[BlackElo "2981"]
[WhiteTeam "NOR"]
[BlackTeam "ESP"]
[WhiteClock "0:00:05"]
[BlackClock "0:00:50"]

1. c4 {[%clk 0:03:00]}  c5 {[%clk 0:02:59]} 2. g3 {[%clk 0:03:00]}  g6 {[%clk 0:02:58]} 3. Bg2 {[%clk 0:03:01]}  Bg7 {[%clk 0:02:59]} 4. Nc3 {[%clk 0:03:01]}  Nf6 {[%clk 0:03:00]} 5. Nh3 {[%clk 0:03:00]}  h5 {[%clk 0:02:53]} 6. Nf4 {[%clk 0:02:59]}  h4 {[%clk 0:02:53]} 7. d3 {[%clk 0:02:59]}  Nc6 {[%clk 0:02:53]} 8. Rb1 {[%clk 0:02:59]}  d6 {[%clk 0:02:53]} 9. a3 {[%clk 0:02:57]}  Bd7 {[%clk 0:02:40]} 10. b4 {[%clk 0:02:55]}  b6 {[%clk 0:02:40]} 11. Ncd5 {[%clk 0:02:33]}  Nxd5 {[%clk 0:02:32]} 12. Nxd5 {[%clk 0:02:19]}  e6 {[%clk 0:02:32]} 13. Ne3 {[%clk 0:02:04]}  Rc8 {[%clk 0:02:32]} 14. Bb2 {[%clk 0:02:01]}  Nd4 {[%clk 0:02:29]} 15. Nc2 {[%clk 0:01:41]}  Ba4 {[%clk 0:02:25]} 16. Bxd4 {[%clk 0:01:36]}  cxd4 {[%clk 0:02:09]} 17. Qd2 {[%clk 0:01:36]}  d5 {[%clk 0:02:08]} 18. c5 {[%clk 0:00:50]}  O-O {[%clk 0:01:52]} 19. O-O {[%clk 0:00:45]}  bxc5 {[%clk 0:01:50]} 20. bxc5 {[%clk 0:00:45]}  Rxc5 {[%clk 0:01:51]} 21. Nb4 {[%clk 0:00:46]}  a5 {[%clk 0:01:44]} 22. Na6 {[%clk 0:00:44]}  Rc2 {[%clk 0:01:40]} 23. Qf4 {[%clk 0:00:21]}  e5 {[%clk 0:00:58]} 24. Qf3 {[%clk 0:00:21]}  Qd6 {[%clk 0:00:53]} 25. Qxd5 {[%clk 0:00:05]}  Qxa6 {[%clk 0:00:50]} 26. Rb7 {[%clk 0:00:05]} 0-1

[Event "January 2 Late 2024"]
[Site "https://www.chess.com"]
[Date "2024.01.02"]
[Round "6"]
[White "Tanriverdi, Enes"]
[Black "Rasulov, Vugar"]
[Result "1/2-1/2"]
[Board "26"]
[TimeControl "180+1"]
[WhiteFideId "34543279"]
[BlackFideId "13402390"]
[WhiteElo "2700"]
[BlackElo "2973"]
[WhiteTeam "TUR"]
[BlackTeam "AZE"]
[WhiteClock "0:00:03"]
[BlackClock "0:00:03"]

1. d4 {[%clk 0:03:00]}  e6 {[%clk 0:03:00]} 2. Nf3 {[%clk 0:03:01]}  Nf6 {[%clk 0:02:57]} 3. c4 {[%clk 0:03:02]}  Bb4+ {[%clk 0:02:57]} 4. Bd2 {[%clk 0:03:02]}  Qe7 {[%clk 0:02:58]} 5. g3 {[%clk 0:03:02]}  d5 {[%clk 0:02:53]} 6. Bg2 {[%clk 0:03:00]}  O-O {[%clk 0:02:54]} 7. O-O {[%clk 0:03:00]}  dxc4 {[%clk 0:02:52]} 8. Qc2 {[%clk 0:03:00]}  Bxd2 {[%clk 0:02:50]} 9. Nbxd2 {[%clk 0:02:58]}  b5 {[%clk 0:02:47]} 10. a4 {[%clk 0:02:55]}  c6 {[%clk 0:02:45]} 11. b3 {[%clk 0:02:55]}  cxb3 {[%clk 0:02:35]} 12. Nxb3 {[%clk 0:02:56]}  Nd5 {[%clk 0:02:31]} 13. Ne5 {[%clk 0:02:55]}  Bb7 {[%clk 0:02:25]} 14. Nc5 {[%clk 0:02:53]}  Rc8 {[%clk 0:02:15]} 15. Rfc1 {[%clk 0:02:50]}  b4 {[%clk 0:02:05]} 16. a5 {[%clk 0:02:42]}  Na6 {[%clk 0:01:51]} 17. Ned3 {[%clk 0:02:31]}  Rd8 {[%clk 0:01:43]} 18. Nxb7 {[%clk 0:02:16]}  Qxb7 {[%clk 0:01:42]} 19. Qxc6 {[%clk 0:02:17]}  Rab8 {[%clk 0:01:29]} 20. Rab1 {[%clk 0:02:01]}  g6 {[%clk 0:01:29]} 21. Qxb7 {[%clk 0:01:54]}  Rxb7 {[%clk 0:01:30]} 22. Rc6 {[%clk 0:01:54]}  Nb8 {[%clk 0:01:23]} 23. Rc4 {[%clk 0:01:53]}  Rb5 {[%clk 0:01:18]} 24. Bxd5 {[%clk 0:01:49]}  Rbxd5 {[%clk 0:01:14]} 25. e3 {[%clk 0:01:34]}  Na6 {[%clk 0:01:05]} 26. Ra1 {[%clk 0:01:03]}  b3 {[%clk 0:00:55]} 27. Nb4 {[%clk 0:00:54]}  Rxa5 {[%clk 0:00:39]} 28. Rb1 {[%clk 0:00:47]}  Ra4 {[%clk 0:00:23]} 29. Rxb3 {[%clk 0:00:41]}  Kg7 {[%clk 0:00:23]} 30. Nc6 {[%clk 0:00:36]}  Rxc4 {[%clk 0:00:23]} 31. Nxd8 {[%clk 0:00:36]}  Nb4 {[%clk 0:00:23]} 32. Nb7 {[%clk 0:00:34]}  Nd5 {[%clk 0:00:17]} 33. Nd6 {[%clk 0:00:34]}  Rb4 {[%clk 0:00:17]} 34. Ra3 {[%clk 0:00:32]}  Rb6 {[%clk 0:00:17]} 35. Nc8 {[%clk 0:00:30]}  Rb1+ {[%clk 0:00:12]} 36. Kg2 {[%clk 0:00:30]}  a5 {[%clk 0:00:12]} 37. Rxa5 {[%clk 0:00:26]}  Rb2 {[%clk 0:00:13]} 38. Kf3 {[%clk 0:00:26]}  Nc3 {[%clk 0:00:12]} 39. Ra1 {[%clk 0:00:19]}  f5 {[%clk 0:00:11]} 40. Nd6 {[%clk 0:00:17]}  Kf6 {[%clk 0:00:11]} 41. Nc4 {[%clk 0:00:17]}  Rc2 {[%clk 0:00:10]} 42. Na3 {[%clk 0:00:15]}  Rb2 {[%clk 0:00:09]} 43. Nc4 {[%clk 0:00:14]}  Rb4 {[%clk 0:00:09]} 44. Ne5 {[%clk 0:00:13]}  Ne4 {[%clk 0:00:09]} 45. h4 {[%clk 0:00:11]}  Rb2 {[%clk 0:00:07]} 46. Nd3 {[%clk 0:00:09]}  Rd2 {[%clk 0:00:08]} 47. Ra3 {[%clk 0:00:09]}  h6 {[%clk 0:00:08]} 48. g4 {[%clk 0:00:06]}  g5 {[%clk 0:00:06]} 49. hxg5+ {[%clk 0:00:07]}  Nxg5+ {[%clk 0:00:05]} 50. Kg3 {[%clk 0:00:07]}  Ne4+ {[%clk 0:00:04]} 51. Kf3 {[%clk 0:00:07]}  Nd6 {[%clk 0:00:03]} 52. gxf5 {[%clk 0:00:07]}  exf5 {[%clk 0:00:03]} 53. Nf4 {[%clk 0:00:07]}  Ne4 {[%clk 0:00:03]} 54. Ra6+ {[%clk 0:00:07]}  Kf7 {[%clk 0:00:03]} 55. Nh3 {[%clk 0:00:03]}  Kg7 {[%clk 0:00:03]} 56. Ra7+ {[%clk 0:00:03]}  Kg6 {[%clk 0:00:03]} 57. Ra6+ {[%clk 0:00:04]}  Kg7 {[%clk 0:00:02]} 58. Ra5 {[%clk 0:00:03]}  Kf6 {[%clk 0:00:02]} 59. Ra6+ {[%clk 0:00:03]}  Kg7 {[%clk 0:00:03]} 1/2-1/2